Workbook

Sheet Question 5
A1: RETFRC Fall 2023 | I1: =A1 -> RETFRC Fall 2023
A2: Question 5 | I2: Question 5
A4: (12 points) | C4: Your client is establishing a new non-contributory defined benefit pension plan that recognizes past service. | I4: Answer question here:
C6: You are given: | I6: A) | J6: Candidates answered this part relatively well. Some candidates were not familiar with the AAN method and calculated the UAL under the PUC/UC method.
J7: Other candidates lost some marks because they calculated the NC individually and then added them.
C8: Plan provisions: | J8: Initial UC Actuarial Liability
C9: Retirement benefit: | D9: $100 per month per year of service | J9: Member A | T9: Member B
C10: Normal form of payment: | D10: Life only, payable monthly in advance | J10: 48 | K10: 18 | T10: 64 | U10: 34
C11: Normal retirement age: | D11: Age 65 | J11: Age | K11: Service | L11: Benefit | M11: Decrement Probability | N11: Survival Probability | O11: Discount Factor | P11: ä65(12) | Q11: AL | T11: Age | U11: Service | V11: Benefit | W11: Decrement Probability | X11: Survival Probability | Y11: Discount Factor | Z11: ä65(12) | AA11: AL
C12: Termination benefit: | D12: Accrued pension deferred to normal retirement age | J12: 48 | K12: =K10 -> 18 | L12: =100*12*K12 -> 21600 | M12: 0.04 | N12: 1 | O12: =1.05^-(65-J10) -> 0.4362966876 | P12: 12.5 | Q12: =PRODUCT(L12:P12) -> 4712.004226 | T12: 65 | U12: =U10 -> 34 | V12: =100*12*U12 -> 40800 | W12: 1 | X12: 1 | Y12: =1.05^-(T12-T10) -> 0.9523809524 | Z12: 12.5 | AA12: =PRODUCT(V12:Z12) -> 485714.2857
J13: 49 | K13: =K12 -> 18 | L13: =100*12*K13 -> 21600 | M13: 0.04 | N13: =N12*(1-M12) -> 0.96 | O13: =1.05^-(65-J10) -> 0.4362966876 | P13: 12.5 | Q13: =PRODUCT(L13:P13) -> 4523.524057 | AA13: =AA12 -> 485714.2857
C14: Actuarial assumptions and methods: | J14: 65 | K14: =K13 -> 18 | L14: =100*12*K14 -> 21600 | M14: 1 | N14: =N13*(1-M13) -> 0.9216 | O14: =1.05^-(J14-J10) -> 0.4362966876 | P14: 12.5 | Q14: =PRODUCT(L14:P14) -> 108564.5774
C15: Discount rate: | D15: 5% per year | Q15: =SUM(Q12:Q14) -> 117800.1057
C16: Decrements: | D16: Beginning of year
C17: Retirement: | D17: Later of: age 65 or 1 year after the valuation date
C18: Termination rates: | D18: Age | E18: Rate | J18: UAL and NC
D19: Prior to age 50 | E19: 4% per year | J19: Member A | T19: Member B
D20: At or after age 50 | E20: 0% per year | J20: 48 | K20: 18 | T20: 64 | U20: 34
C21: Other pre-retirement decrements: | D21: None | J21: Age | K21: Service | L21: Benefit | M21: Decrement Probability | N21: Survival Probability | O21: Discount Factor | P21: ä65(12) | Q21: PVFB | R21: PVFY | T21: Age | U21: Service | V21: Benefit | W21: Decrement Probability | X21: Survival Probability | Y21: Discount Factor | Z21: ä65(12) | AA21: PVFB | AB21: PVFY
C22: Actuarial cost method: | D22: Attained Age Normal | J22: 48 | K22: =K20 -> 18 | L22: =100*12*K22 -> 21600 | M22: 0.04 | N22: 1 | O22: =1.05^-(65-J20) -> 0.4362966876 | P22: 12.5 | Q22: =PRODUCT(L22:P22) -> 4712.004226 | R22: =M22*N22*(1-1.05^-(J22-J20))/(0.05/1.05) -> 0 | T22: 65 | U22: =U20+T22-T20 -> 35 | V22: =100*12*U22 -> 42000 | W22: 1 | X22: 1 | Y22: =1.05^-(T22-T20) -> 0.9523809524 | Z22: 12.5 | AA22: =PRODUCT(V22:Z22) -> 500000 | AB22: =W22*X22*(1-1.05^-(T22-T20))/(0.05/1.05) -> 1
C23: Asset method: | D23: Market value of assets | J23: 49 | K23: =K22+J23-J22 -> 19 | L23: =100*12*K23 -> 22800 | M23: 0.04 | N23: =N22*(1-M22) -> 0.96 | O23: =1.05^-(65-J20) -> 0.4362966876 | P23: 12.5 | Q23: =PRODUCT(L23:P23) -> 4774.830949 | R23: =M23*N23*(1-1.05^-(J23-J20))/(0.05/1.05) -> 0.0384 | AA23: =AA22 -> 500000 | AB23: =AB22 -> 1
J24: 65 | K24: =K23+J24-J23 -> 35 | L24: =100*12*K24 -> 42000 | M24: 1 | N24: =N23*(1-M23) -> 0.9216 | O24: =1.05^-(J24-J20) -> 0.4362966876 | P24: 12.5 | Q24: =PRODUCT(L24:P24) -> 211097.7893 | R24: =M24*N24*(1-1.05^-(J24-J20))/(0.05/1.05) -> 10.90968843
C25: Participant data at January 1, 2023: | Q25: =SUM(Q22:Q24) -> 220584.6245 | R25: =SUM(R22:R24) -> 10.94808843
C26: Employee: | D26: Member A | E26: Member B
C27: Age (years): | D27: 48 | E27: 64 | J27: Total
C28: Service (years): | D28: 18 | E28: 34 | J28: AL | K28: =Q15+AA13 -> 603514.3914
J29: F | K29: 600000
C30: Additional information: | J30: UAL | K30: =K28-K29 -> 3514.391369
C31: Market value of assets as at January 1, 2023: | D31: 600000 | J31: PVFB | K31: =AA23+Q25 -> 720584.6245
J32: PVFY | K32: =R25+AB23 -> 11.94808843
C33: Annuity factors: | J33: n | K33: 2
C34: ä68(12) = | D34: 11.6 | E34: ä67(12) = | F34: 11.9 | J34: NC | K34: =(K31-K30-K29)/K32*K33 -> 19596.4792 | L34: (PVFB - F - UAL) / PVFY * n
C35: ä66(12) = | D35: 12.2 | E35: ä65(12) = | F35: 12.5
C36: ä64(12) = | D36: 12.8 | E36: ä63(12) = | F36: 13.1 | I36: B) | J36: Candidates answered this part relatively well. Some candidates were not familiar with the AAN method and calculated the UAL under the PUC/UC method.
J37: Other candidates lost some marks because they calculated the NC individually and then added them.
J38: UAL and NC
A39: (a) | B39: (4 points) | C39: Calculate the unfunded actuarial liability and the total normal cost as at January 1, 2023.
J40: Member A | T40: Member B
C41: Show all work, including each step of the calculation separately, in the workspace provided to the right (in Excel). | J41: 49 | K41: 19 | T41: 65 | U41: 35
J42: Age | K42: Service | L42: Benefit | M42: Decrement Probability | N42: Survival Probability | O42: Discount Factor | P42: ä65(12) | Q42: PVFB | R42: PVFY | T42: Age | U42: Service | V42: Benefit | W42: Decrement Probability | X42: Survival Probability | Y42: Discount Factor | Z42: ä65(12) | AA42: PVFB | AB42: PVFY
J43: 49 | K43: =K41 -> 19 | L43: =100*12*K43 -> 22800 | M43: 0.04 | N43: 1 | O43: =1.05^-(65-J41) -> 0.458111522 | P43: 12.5 | Q43: =PRODUCT(L43:P43) -> 5222.471351 | R43: =M43*N43*(1-1.05^-(J43-J41))/(0.05/1.05) -> 0 | T43: 66 | U43: =U41+T43-T41 -> 36 | V43: =100*12*U43 -> 43200 | W43: 1 | X43: 1 | Y43: =1.05^-(T43-T41) -> 0.9523809524 | Z43: 12.2 | AA43: =PRODUCT(V43:Z43) -> 501942.8571 | AB43: =W43*X43*(1-1.05^-(T43-T41))/(0.05/1.05) -> 1
C44: You are given the following for 2024: | J44: 65 | K44: =K43+J44-J43 -> 35 | L44: =100*12*K44 -> 42000 | M44: 1 | N44: =N43*(1-M43) -> 0.96 | O44: =1.05^-(J44-J41) -> 0.458111522 | P44: 12.5 | Q44: =PRODUCT(L44:P44) -> 230888.2071 | R44: =M44*N44*(1-1.05^-(J44-J41))/(0.05/1.05) -> 10.92447172 | AA44: =AA43 -> 501942.8571 | AB44: =AB43 -> 1
C45: · A contribution of $20,000 was made to the plan on December 31, 2023. | Q45: =SUM(Q43:Q44) -> 236110.6784 | R45: =SUM(R43:R44) -> 10.92447172
C46: · The plan's assets earned a rate of return of 5% during 2023. | J46: Total
C47: · Member B did not retire. | J47: AL | K47: =(K28+K34)*1.05 -> 654266.4141
J48: F | K48: =K29*1.05+20000 -> 650000
A49: (b) | B49: (3 points) | C49: Calculate the unfunded actuarial liability and the total normal cost as at January 1, 2024. | J49: UAL | K49: =K47-K48 -> 4266.414093
J50: PVFB | K50: =AA44+Q45 -> 738053.5356
C51: Show all work, including each step of the calculation separately, in the workspace provided to the right (in Excel). | J51: PVFY | K51: =R45+AB44 -> 11.92447172
J52: n | K52: 2
J53: NC | K53: =(K50-K49-K48)/K51*K52 -> 14052.96997 | L53: (PVFB - F - UAL) / PVFY * n
A54: (c) | B54: (5 points) | C54: Calculate the effect of the demographic experience by source between January 1, 2023 | J54: NC | K54: =K53/2 -> 7026.484986 | L54: (per member)
C55: and January 1, 2024 on the normal cost for each member.
I56: C) | J56: This question was answered very poorly. Very few candidates knew the structure of how the gains/losses were calculated under the AAN method.
C57: Show all work, including each step of the calculation separately, in the workspace provided to the right (in Excel).
J59: Member A | L59: Expected | M59: Actual | T59: Member B | V59: Expected | W59: Actual
K60: PVFB | L60: =Q25*1.05 -> 231613.8557 | M60: =Q45 -> 236110.6784 | U60: PVFB | V60: =AA23*1.05 -> 525000 | W60: =AA44 -> 501942.8571
K61: PVFY | L61: =R25*1.05-1*1.05*0.96 -> 10.48749285 | M61: =R45 -> 10.92447172 | U61: PVFY | V61: =AB23*1.05-1*1.05 -> 0 | W61: =AB44 -> 1
J63: Total | T63: Total
J64: Expected | K64: PVFB | L64: =K50-M60+L60 -> 733556.7129 | T64: Expected | U64: PVFB | V64: =L64-W60+V60 -> 756613.8557
K65: PVFY | L65: =K51-M61+L61 -> 11.48749285 | U65: PVFY | V65: =L65-W61+V61 -> 10.48749285
K66: NC | L66: =(L64-K49-K48)/L65*K52 -> 13804.6308 | U66: NC | V66: =(V64-K49-K48)/V65*K52 -> 19517.9998
L67: =L66/2 -> 6902.315399 | M67: (per member) | V67: =V66/2 -> 9758.999899 | W67: (per member)
K68: G&L | L68: =L67-K54 -> -124.1695868 | M68: NC lower than expected due to member not terminating | U68: G&L | V68: =V67-L67 -> 2856.684499 | W68: NC higher than expected due to member not retiring
... 1 more rows
